lending/lending_fUSD_20250429
["ID","MTS","AMOUNT","RATE_DAILY","PERIOD"]
[359336985,1745940637699,-1563.46598488,0.00027356,2]
[359336986,1745940637710,-10136.16736769,0.00027356,2]
[359336987,1745940637722,-332.84204349,0.00027356,2]
[359336988,1745940637733,-277.595,0.00027356,2]
[359336989,1745940637744,-1731.16,0.00027356,2]
[359336990,1745940637755,-1285.48705658,0.00027356,2]
[359336991,1745940637774,-1001.0,0.00027356,2]
[359336992,1745940637816,-895.89499998,0.00027356,2]
[359336993,1745940637851,-956.0,0.00027356,2]
[359337003,1745940639891,-328.2409,0.000272,2]
[359337004,1745940639900,-151.0,0.00027356,7]
[359337005,1745940639910,-151.0,0.00027356,7]
[359337006,1745940639919,-151.0,0.00027356,7]
[359337007,1745940639929,-218.7591,0.00027356,2]
[359337008,1745940639940,-2910.02301602,0.00027356,2]
[359337009,1745940639951,-4452.49717128,0.00027356,2]
[359337010,1745940639962,-327.179705,0.00027356,2]
[359337011,1745940639974,-379174.25959035,0.00027356,2]
[359337012,1745940639983,-333857.524681,0.00027356,2]
[359337013,1745940639993,-203724.506774,0.00027356,2]
[359337014,1745940640002,-151753.420309,0.00027357,2]
[359337015,1745940640012,-152793.380081,0.00027357,2]
[359337016,1745940640021,-25465.5633468,0.00027357,2]
[359337017,1745940640031,-3257.46866723,0.0002736,2]
[359337018,1745940640040,-2669.72628421,0.00027363,2]
[359337019,1745940640049,-30350.6840619,0.00027366,2]
[359337020,1745940640058,-9738.80953683,0.00027366,2]
[359337021,1745940640090,-15726.75380997,0.00027366,2]
[359337022,1745940640100,-60701.3681238,0.00027366,2]
[359337023,1745940640110,-62048.619154,0.00027366,2]
[359337024,1745940640197,-14348.0708863,0.00027366,2]
[359337025,1745940640208,-151.0,0.00027366,7]
[359337026,1745940640218,-151.0,0.00027366,7]
[359337027,1745940640227,-151.0,0.00027366,7]
[359337028,1745940640238,-164.054236,0.00027366,7]
[359337029,1745940640247,-151.0,0.00027366,7]
[359337030,1745940640257,-223.891504,0.00027366,7]
[359337031,1745940640266,-569.077478,0.00027366,7]
[359337032,1745940640275,-569.077478,0.00027366,7]
[359337033,1745940640285,-569.077478,0.00027366,7]
[359337034,1745940640296,-151.0,0.00027366,7]
[359337035,1745940640305,-569.077478,0.00027366,7]
[359337036,1745940640315,-569.077478,0.00027366,7]
[359337037,1745940640324,-569.077478,0.00027366,7]
[359337038,1745940640334,-164.071441,0.00027366,7]
[359337039,1745940640343,-452.484031,0.00027366,7]
[359337040,1745940640353,-452.484031,0.00027366,7]
[359337041,1745940640362,-452.484031,0.00027366,7]
[359337042,1745940640371,-452.484031,0.00027366,7]
[359337043,1745940640380,-452.484031,0.00027366,7]
[359337044,1745940640390,-452.484031,0.00027366,7]
[359337046,1745940640399,-452.484031,0.00027366,7]
[359337047,1745940640408,-452.484031,0.00027366,7]
[359337048,1745940640417,-177.453808,0.00027366,7]
[359337049,1745940640428,-177.453808,0.00027366,7]
[359337050,1745940640448,-177.453808,0.00027366,7]
[359337051,1745940640458,-177.453808,0.00027366,7]
[359337052,1745940640467,-177.453808,0.00027366,7]
[359337053,1745940640478,-177.453808,0.00027366,7]
[359337054,1745940640488,-177.453808,0.00027366,7]
[359337055,1745940640498,-177.453808,0.00027366,7]
[359337056,1745940640510,-151.0,0.00027366,7]
[359337057,1745940640521,-151.0,0.00027366,7]
[359337058,1745940640531,-172.159424,0.00027366,7]
[359337059,1745940640542,-151.0,0.00027366,7]
[359337060,1745940640553,-151.0,0.00027366,7]
[359337061,1745940640564,-151.0,0.00027366,7]
[359337062,1745940640575,-151.0,0.00027366,7]
[359337063,1745940640584,-151.0,0.00027366,7]
[359337064,1745940640594,-151.0,0.00027366,7]
[359337065,1745940640604,-151.0,0.00027366,7]
[359337066,1745940640613,-151.0,0.00027366,7]
[359337067,1745940640623,-911.587642,0.00027366,7]
[359337068,1745940640633,-911.587642,0.00027366,7]
[359337069,1745940640643,-911.587642,0.00027366,7]
[359337070,1745940640653,-911.587642,0.00027366,7]
[359337072,1745940640662,-151.0,0.00027366,7]
[359337075,1745940640672,-151.0,0.00027366,7]
[359337077,1745940640681,-151.0,0.00027366,7]
[359337079,1745940640691,-170.00834,0.00027366,7]
[359337080,1745940640700,-911.587642,0.00027366,7]
[359337082,1745940640710,-911.587642,0.00027366,7]
[359337084,1745940640720,-911.587642,0.00027366,7]
[359337085,1745940640730,-911.587642,0.00027366,7]
[359337086,1745940640740,-151.0,0.00027366,7]
[359337087,1745940640750,-151.0,0.00027366,7]
[359337088,1745940640760,-151.0,0.00027366,7]
[359337089,1745940640770,-151.0,0.00027366,7]
[359337090,1745940640780,-314.669393,0.00027366,7]
[359337091,1745940640790,-314.669393,0.00027366,7]
[359337092,1745940640800,-314.669393,0.00027366,7]
[359337093,1745940640810,-314.669393,0.00027366,7]
[359337094,1745940640820,-314.669393,0.00027366,7]
[359337095,1745940640830,-314.669393,0.00027366,7]
[359337096,1745940640839,-314.669393,0.00027366,7]
[359337097,1745940640849,-314.669393,0.00027366,7]
[359337098,1745940640858,-151.0,0.00027366,7]
[359337099,1745940640868,-151.0,0.00027366,7]
[359337100,1745940640877,-166.071266,0.00027366,7]
[359337101,1745940640888,-151.0,0.00027366,7]
[359337102,1745940640897,-151.0,0.00027366,7]
[359337103,1745940640907,-151.0,0.00027366,7]
[359337104,1745940640916,-212.612496,0.00027366,7]
[359337105,1745940640927,-152.661196,0.00027366,7]
[359337106,1745940640936,-876.377759,0.00027366,7]
[359337107,1745940640946,-876.377759,0.00027366,7]
[359337108,1745940640955,-876.377759,0.00027366,7]
[359337109,1745940640965,-876.377759,0.00027366,7]
[359337110,1745940640975,-876.377759,0.00027366,7]
[359337111,1745940640984,-876.377759,0.00027366,7]
[359337112,1745940640993,-876.377759,0.00027366,7]
[359337113,1745940641003,-876.377759,0.00027366,7]
[359337114,1745940641013,-151.0,0.00027366,7]
[359337115,1745940641023,-151.0,0.00027366,7]
[359337116,1745940641034,-151.0,0.00027366,7]
[359337117,1745940641043,-151.0,0.00027366,7]
[359337118,1745940641053,-151.0,0.00027366,7]
[359337119,1745940641063,-291.412431,0.00027366,7]
[359337120,1745940641075,-291.412431,0.00027366,7]
[359337121,1745940641086,-291.412431,0.00027366,7]
[359337122,1745940641096,-291.412431,0.00027366,7]
[359337123,1745940641105,-291.412431,0.00027366,7]
[359337124,1745940641115,-291.412431,0.00027366,7]
[359337125,1745940641126,-291.412431,0.00027366,7]
[359337126,1745940641135,-291.412431,0.00027366,7]
[359337127,1745940641144,-425.428214,0.00027366,7]
[359337128,1745940641155,-425.428214,0.00027366,7]
[359337129,1745940641165,-425.428214,0.00027366,7]
[359337130,1745940641176,-425.428214,0.00027366,7]
[359337131,1745940641186,-425.428214,0.00027366,7]
[359337132,1745940641195,-425.428214,0.00027366,7]
[359337133,1745940641205,-425.428214,0.00027366,7]
[359337134,1745940641215,-425.428214,0.00027366,7]
[359337135,1745940641224,-151.0,0.00027366,7]
[359337136,1745940641233,-240.395686,0.00027366,7]
[359337137,1745940641243,-151.0,0.00027366,7]
[359337138,1745940641252,-151.0,0.00027366,7]
[359337139,1745940641262,-151.0,0.00027366,7]
[359337140,1745940641271,-151.0,0.00027366,7]
[359337141,1745940641281,-151.0,0.00027366,7]
[359337142,1745940641291,-151.0,0.00027366,7]
[359337143,1745940641301,-1518.23946635,0.00027367,2]
[359337144,1745940641415,-764.8,0.00027367,2]
[359337145,1745940641993,-1729.85740307,0.00027367,2]
[359337157,1745940643948,-1912.00908923,0.00027367,2]
[359337158,1745940644075,-19540.65738815,0.00027367,2]
[359337159,1745940644088,-151.0,0.00027367,7]
[359337160,1745940644097,-151.0,0.00027367,7]
[359337161,1745940644107,-153.273663,0.00027367,7]
[359337162,1745940644116,-151.0,0.00027367,7]
[359337163,1745940644126,-362.678332,0.00027367,7]
[359337164,1745940644137,-362.678332,0.00027367,7]
[359337165,1745940644148,-551.499017,0.00027367,7]
[359337166,1745940644159,-551.499017,0.00027367,7]
[359337167,1745940644169,-151.0,0.00027367,7]
[359337168,1745940644179,-569.077478,0.00027367,7]
[359337169,1745940644188,-569.077478,0.00027367,7]
[359337171,1745940644198,-452.484031,0.00027367,7]
[359337174,1745940644207,-452.484031,0.00027367,7]
[359337176,1745940644216,-177.453808,0.00027367,7]
[359337177,1745940644225,-177.453808,0.00027367,7]
[359337179,1745940644234,-151.0,0.00027367,7]
[359337181,1745940644244,-151.0,0.00027367,7]
[359337183,1745940644253,-911.587642,0.00027367,7]
[359337184,1745940644262,-911.587642,0.00027367,7]
[359337186,1745940644271,-151.0,0.00027367,7]
[359337188,1745940644280,-314.669393,0.00027367,7]
[359337190,1745940644290,-314.669393,0.00027367,7]
[359337192,1745940644299,-876.377759,0.00027367,7]
[359337194,1745940644308,-876.377759,0.00027367,7]
[359337196,1745940644317,-151.0,0.00027367,7]
[359337198,1745940644326,-291.412431,0.00027367,7]
[359337199,1745940644335,-291.412431,0.00027367,7]
[359337200,1745940644345,-425.428214,0.00027367,7]
[359337201,1745940644354,-425.428214,0.00027367,7]
[359337202,1745940644364,-2707.0,0.0002737,2]
[359337203,1745940644373,-299.0,0.0002737,2]
[359337204,1745940644383,-5697.0,0.0002737,2]
[359337205,1745940644394,-165.38,0.0002737,2]
[359337206,1745940644404,-150.0,0.0002737,2]
[359337207,1745940644414,-452.484031,0.0002737,7]
[359337208,1745940644423,-452.484031,0.0002737,7]
[359337209,1745940644434,-177.453808,0.0002737,7]
[359337210,1745940644443,-177.453808,0.0002737,7]
[359337211,1745940644452,-151.0,0.0002737,7]
[359337212,1745940644462,-911.587642,0.0002737,7]
[359337213,1745940644471,-911.587642,0.0002737,7]
[359337214,1745940644481,-1000.0,0.0002737,28]
[359337215,1745940644490,-1000.0,0.0002737,28]
[359337216,1745940644499,-1000.0,0.0002737,28]
[359337217,1745940644508,-1000.0,0.0002737,28]
[359337218,1745940644517,-1000.0,0.0002737,28]
[359337219,1745940644526,-1000.0,0.0002737,28]
[359337220,1745940644535,-1000.0,0.0002737,28]
[359337221,1745940644544,-1000.0,0.0002737,28]
[359337222,1745940644553,-1000.0,0.0002737,28]
[359337223,1745940644563,-1000.0,0.0002737,28]
[359337224,1745940644572,-1000.0,0.0002737,28]
[359337225,1745940644581,-1000.0,0.0002737,28]
[359337226,1745940644591,-1000.0,0.0002737,28]
[359337227,1745940644601,-1000.0,0.0002737,28]
[359337228,1745940644610,-1000.0,0.0002737,28]
[359337229,1745940644619,-1000.0,0.0002737,28]
[359337230,1745940644629,-1000.0,0.0002737,28]
[359337231,1745940644638,-1000.0,0.0002737,28]
[359337232,1745940644648,-1000.0,0.0002737,28]
[359337233,1745940644657,-1000.0,0.0002737,28]
[359337234,1745940644667,-1000.0,0.0002737,28]
[359337235,1745940644676,-1000.0,0.0002737,28]
[359337236,1745940644686,-1000.0,0.0002737,28]
[359337237,1745940644695,-1000.0,0.0002737,28]
[359337238,1745940644704,-1000.0,0.0002737,28]
[359337239,1745940644713,-1000.0,0.0002737,28]
[359337240,1745940644723,-1000.0,0.0002737,28]
[359337241,1745940644733,-1000.0,0.0002737,28]
[359337242,1745940644743,-1000.0,0.0002737,28]
[359337243,1745940644754,-1000.0,0.0002737,28]
[359337244,1745940644764,-1000.0,0.0002737,28]
[359337245,1745940644774,-1000.0,0.0002737,28]
[359337246,1745940644783,-1000.0,0.0002737,28]
[359337247,1745940644793,-1000.0,0.0002737,28]
[359337248,1745940644802,-1000.0,0.0002737,28]
[359337249,1745940644812,-1000.0,0.0002737,28]
[359337250,1745940644821,-1000.0,0.0002737,28]
[359337251,1745940644831,-1000.0,0.0002737,28]
[359337252,1745940644841,-1000.0,0.0002737,28]
[359337253,1745940644850,-1000.0,0.0002737,28]
[359337254,1745940644860,-743.70473,0.0002737,28]
[359337255,1745940644870,-500.0,0.00027373,2]
[359337256,1745940644879,-153.3206912,0.00027373,2]
[359337257,1745940644889,-10447.68074796,0.00027375,2]
[359337258,1745940644932,-302.0,0.00027375,2]
[359337259,1745940645058,-4524.92489908,0.00027375,2]
[359337260,1745940645572,-3303.64415074,0.00027375,2]
[359337261,1745940645583,-4104.28265254,0.00027375,2]
[359337262,1745940645604,-1144.90002,0.00027375,2]
[359337263,1745940645616,-1638.13087648,0.00027375,2]
[359337264,1745940645625,-178.364398,0.00027375,7]
[359337265,1745940645635,-151.0,0.00027375,7]
[359337266,1745940645644,-151.0,0.00027375,7]
[359337267,1745940645654,-300.0,0.00027376,10]
[359337268,1745940645664,-396.29888626,0.00027376,2]
[359337269,1745940645679,-103.70111374,0.00027376,2]
[359337270,1745940645689,-206.0990837,0.00027376,2]
[359337271,1745940645701,-293.9009163,0.00027376,2]
[359337272,1745940645711,-151.0,0.00027376,7]
[359337273,1745940645722,-151.0,0.00027376,7]
[359337274,1745940645732,-151.0,0.00027376,7]
[359337275,1745940645743,-213.649672,0.00027376,7]
[359337276,1745940645753,-151.0,0.00027376,7]
[359337277,1745940645763,-177.654121,0.00027376,7]
[359337278,1745940645773,-177.654121,0.00027376,7]
[359337279,1745940645783,-177.654121,0.00027376,7]
[359337280,1745940645793,-151.0,0.00027376,7]
[359337281,1745940645803,-151.0,0.00027376,7]
[359337282,1745940645812,-151.0,0.00027376,7]
[359337283,1745940645822,-177.654121,0.00027376,7]
[359337284,1745940645831,-177.654121,0.00027376,7]
[359337285,1745940645841,-177.654121,0.00027376,7]
[359337286,1745940645850,-151.0,0.00027376,7]
[359337287,1745940645860,-151.0,0.00027376,7]
[359337288,1745940645870,-151.0,0.00027376,7]
[359337289,1745940645880,-151.0,0.00027376,7]
[359337290,1745940645890,-151.0,0.00027376,7]
[359337291,1745940645900,-151.0,0.00027376,7]
[359337292,1745940645909,-151.0,0.00027376,7]
[359337293,1745940645919,-159.248237,0.00027376,7]
[359337294,1745940645931,-276.08323,0.00027376,7]
[359337295,1745940645940,-211.37324391,0.00027376,7]
[359337296,1745940645952,-151.30508809,0.00027376,7]
[359337297,1745940645962,-362.678332,0.00027376,7]
[359337298,1745940645971,-362.678332,0.00027376,7]
[359337299,1745940645981,-362.678332,0.00027376,7]
[359337300,1745940645992,-362.678332,0.00027376,7]
[359337301,1745940646001,-362.678332,0.00027376,7]
[359337302,1745940646010,-551.499017,0.00027376,7]
[359337303,1745940646020,-551.499017,0.00027376,7]
[359337304,1745940646029,-551.499017,0.00027376,7]
[359337305,1745940646039,-551.499017,0.00027376,7]
[359337306,1745940646048,-551.499017,0.00027376,7]
[359337307,1745940646057,-551.499017,0.00027376,7]
[359337308,1745940646067,-151.0,0.00027376,7]
[359337309,1745940646081,-151.0,0.00027376,7]
[359337310,1745940646090,-151.0,0.00027376,7]
[359337311,1745940646100,-28378.77064286,0.00027376,2]
[359337312,1745940646130,-2840.0,0.00027376,2]
[359337313,1745940646190,-32330.4000069,0.00027376,2]
[359337314,1745940646202,-2278.032,0.00027376,2]
[359337315,1745940646213,-427.81029918,0.00027376,2]
[359337340,1745941198537,-170.61,0.00021064,2]
[359337341,1745941244934,155.01,0.00026331,120]
[359337342,1745941355668,150.83,0.00027425,30]
[359337343,1745941684058,150.0,0.000202,2]
[359337348,1745941831731,-380.23,0.00024413,2]
[359337349,1745941831741,-349.01647899,0.00024999,2]
[359337350,1745941831815,-586.98352101,0.00024999,2]
[359337351,1745941831824,-83.43641815,0.00025,5]
[359337352,1745941831838,-3968.63211848,0.00025,5]
[359337353,1745941831850,-16359.35374112,0.00025,5]
[359337354,1745941831860,-306.65,0.00025736,2]
[359337355,1745941831869,-203.59247867,0.00025745,2]
[359337356,1745941831879,-1249.36,0.00025845,2]
[359337357,1745941831888,-1905.0437086,0.000259,6]
[359337358,1745941831898,-9469.43,0.00025908,2]
[359337359,1745941831907,-163.53,0.00025955,2]
[359337360,1745941831916,-283.0,0.00025973,2]
[359337361,1745941831926,-150.0,0.00026002,2]
[359337362,1745941831935,-2374.97,0.0002603,2]
[359337363,1745941831944,-207.4,0.00026144,2]
[359337364,1745941831954,-150.0,0.00026207,2]
[359337365,1745941831963,-200.0,0.00026331,2]
[359337366,1745941831972,-193.18,0.00026342,2]
[359337367,1745941831982,-830.73,0.00026358,2]
[359337368,1745941831992,-1000.0,0.0002638,2]
[359337369,1745941832001,-9768.87,0.00026383,2]
[359337370,1745941832011,-1905.04370837,0.0002659,6]
[359337371,1745941832020,-380.23,0.00026677,2]
[359337372,1745941832029,-150.0,0.0002679,2]
[359337373,1745941832038,-250.0,0.00026854,2]
[359337374,1745941832047,-150.0,0.00026884,2]
[359337375,1745941832056,-203.59247866,0.000269,2]
[359337376,1745941832066,-2453.8059773,0.00026919,2]
[359337377,1745941832075,-150.0,0.00026974,2]
[359337378,1745941832085,-150.0,0.00027,2]
[359337379,1745941832095,-979.24953,0.00027,2]
[359337380,1745941832104,-79846.83331648,0.00027,3]
[359337381,1745941832119,-542.68847428,0.00027,3]
[359337382,1745941832130,-435.51929983,0.00027,3]
[359337384,1745941832154,-2628.0,0.00027,3]
[359337387,1745941832165,-315.2126446,0.00027,3]
[359337391,1745941832186,-11007.6829271,0.00027,3]
[359337402,1745941832272,-402.1654592,0.00027,3]
[359337404,1745941832283,-2792.24553182,0.00027,3]
[359337406,1745941832294,-1173.09910195,0.00027,3]
[359337452,1745941840138,-155535.68219011,0.00027,3]
[359337453,1745941840147,-4123.81830748,0.00027,2]
[359337454,1745941840157,-150.0,0.00027019,2]
[359337455,1745941840166,-150.0,0.0002702,2]
[359337456,1745941840175,-758.82955545,0.00027059,2]
[359337457,1745941840185,-2453.80597723,0.00027113,2]
[359337458,1745941840195,-337.36418651,0.00027139,2]
[359337459,1745941840204,-200.0,0.00027167,2]
[359337460,1745941840213,-30044.1114956,0.0002719,2]
[359337461,1745941840223,-36226.7403,0.000272,2]
[359337462,1745941840234,-339.5,0.000272,2]
[359337463,1745941840244,-323.95,0.000272,2]
[359337464,1745941840255,-300.0,0.000272,2]
[359337465,1745941840266,-351.59,0.000272,2]
[359337466,1745941840275,-154.13,0.000272,2]
[359337467,1745941840285,-150.0,0.000272,2]
[359337468,1745941840294,-1720.0,0.000272,2]
[359337469,1745941840304,-1905.04370837,0.00027279,7]
[359337470,1745941840313,-276.3835113,0.00027287,2]
[359337471,1745941840322,-281.01175676,0.00027291,2]
[359337472,1745941840332,-212.3091461,0.000273,2]
[359337473,1745941840341,-2453.80597723,0.00027307,2]
[359337474,1745941840350,-256.57,0.00027365,2]
[359337475,1745941840360,-90132.3344868,0.00027366,2]
[359337476,1745941840369,-125875.0660322,0.00027372,2]
[359337477,1745941840379,-5541.111581,0.00027372,2]
[359337478,1745941840388,-12767.023007,0.00027372,2]
[359337479,1745941840397,-500.0,0.00027373,2]
[359337480,1745941840406,-500.0,0.00027373,2]
[359337481,1745941840416,-500.0,0.00027373,2]
[359337482,1745941840426,-500.0,0.00027373,2]
[359337483,1745941840435,-500.0,0.00027373,2]
[359337484,1745941840445,-500.0,0.00027373,2]
[359337485,1745941840454,-311.78060314,0.00027373,2]
[359337486,1745941840464,-151.0,0.00027376,7]
[359337487,1745941840473,-200.0,0.00027376,2]
[359337488,1745941840482,-200.0,0.00027376,2]
[359337489,1745941840491,-60088.2229912,0.00027377,2]
[359337490,1745941840500,-48283.691564,0.00027377,2]
[359337491,1745941840510,-408.41520953,0.00027377,2]
[359337492,1745941840520,-168.267328,0.00027377,7]
[359337493,1745941840529,-30044.1114956,0.00027381,2]
[359337494,1745941840541,-500.0,0.00027385,2]
[359337495,1745941840551,-500.0,0.00027385,2]
[359337496,1745941840561,-500.0,0.00027386,2]
[359337497,1745941840570,-500.0,0.00027386,2]
[359337498,1745941840579,-500.0,0.00027386,2]
[359337499,1745941840590,-500.0,0.00027386,2]
[359337500,1745941840599,-500.0,0.00027386,2]
[359337501,1745941840609,-300.0,0.00027386,10]
[359337502,1745941840621,-300441.114956,0.00027387,2]
[359337503,1745941840632,-313843.995166,0.00027387,2]
[359337504,1745941840641,-151.0,0.00027387,7]
[359337505,1745941840652,-216.388211,0.00027387,7]
[359337506,1745941840662,-223.204384,0.00027387,7]
[359337507,1745941840672,-223.204384,0.00027387,7]
[359337508,1745941840682,-151.0,0.00027391,7]
[359337509,1745941840691,-302.478594,0.00027391,7]
[359337510,1745941840700,-302.478594,0.00027391,7]
[359337511,1745941840709,-151.0,0.00027391,7]
[359337512,1745941840718,-238.814883,0.00027391,7]
[359337513,1745941840727,-238.814883,0.00027391,7]
[359337514,1745941840736,-157.626599,0.00027391,7]
[359337515,1745941840745,-159.057514,0.00027391,7]
[359337516,1745941840754,-151.0,0.00027391,7]
[359337517,1745941840764,-158.413164,0.00027391,7]
[359337518,1745941840773,-158.413164,0.00027391,7]
[359337519,1745941840783,-717.734999,0.00027391,7]
[359337520,1745941840792,-151.0,0.00027391,7]
[359337521,1745941840801,-151.0,0.00027391,7]
[359337522,1745941840810,-151.0,0.00027391,7]
[359337523,1745941840819,-151.0,0.00027391,7]
[359337524,1745941840828,-151.0,0.00027391,7]
[359337525,1745941840837,-151.0,0.00027391,7]
[359337526,1745941840846,-206.996829,0.00027391,7]
[359337527,1745941840864,-151.0,0.00027391,7]
[359337528,1745941840876,-270.456999,0.00027391,7]
[359337529,1745941840886,-270.456999,0.00027391,7]
[359337530,1745941840895,-151.0,0.00027391,7]
[359337531,1745941840905,-151.0,0.00027391,7]
[359337532,1745941840914,-273.476293,0.00027391,7]
[359337533,1745941840924,-273.476293,0.00027391,7]
[359337534,1745941840933,-158.69536,0.00027391,7]
[359337535,1745941840942,-500.0,0.00027395,2]
[359337536,1745941840952,-500.0,0.00027395,2]
[359337537,1745941840961,-500.0,0.00027396,2]
[359337538,1745941840971,-500.0,0.00027396,2]
[359337539,1745941840980,-500.0,0.00027396,2]
[359337540,1745941840990,-500.0,0.00027396,2]
[359337541,1745941840999,-500.0,0.00027396,2]
[359337542,1745941841009,-500.0,0.00027396,2]
[359337543,1745941841019,-500.0,0.00027396,2]
[359337544,1745941841029,-300.0,0.00027396,10]
[359337545,1745941841039,-300.0,0.00027396,10]
[359337546,1745941841048,-300.0,0.00027396,10]
[359337547,1745941841058,-282.71345572,0.00027396,2]
[359337548,1745941841067,-500.0,0.00027397,2]
[359337549,1745941841077,-160.0,0.00027397,2]
[359337550,1745941841086,-505.42113894,0.00027397,2]
[359337551,1745941841096,-500.0,0.00027397,2]
[359337552,1745941841106,-155.80818447,0.00027397,2]
[359337553,1745941841116,-470.0,0.00027397,2]
[359337554,1745941841126,-504.34040855,0.00027397,2]
[359337555,1745941841136,-500.0,0.00027397,2]
[359337556,1745941841146,-358.86187994,0.00027397,2]
[359337557,1745941841156,-470.0,0.00027397,2]
[359337558,1745941841166,-502.73777972,0.00027397,2]
[359337559,1745941841176,-470.0,0.00027397,2]
[359337560,1745941841186,-470.0,0.00027397,2]
[359337561,1745941841195,-470.0,0.00027397,2]
[359337562,1745941841205,-470.0,0.00027397,2]
[359337563,1745941841214,-470.0,0.00027397,2]
[359337564,1745941841225,-420.62620076,0.00027397,2]
[359337565,1745941841234,-470.0,0.00027397,2]
[359337566,1745941841244,-508.51214506,0.00027397,2]
[359337567,1745941841254,-500.6562408,0.00027397,2]
[359337568,1745941841266,-500.0,0.00027397,2]
[359337569,1745941841275,-500.0,0.00027397,2]
[359337570,1745941841284,-470.0,0.00027397,2]
[359337571,1745941841294,-500.0,0.00027397,2]
[359337572,1745941841305,-505.42537913,0.00027397,2]
[359337573,1745941841315,-500.0,0.00027397,2]
[359337574,1745941841324,-489.27322375,0.00027397,2]
[359337575,1745941841334,-470.0,0.00027397,2]
[359337576,1745941841345,-504.75436155,0.00027397,2]
[359337577,1745941841355,-470.0,0.00027397,2]
[359337578,1745941841364,-503.68924316,0.00027397,2]
[359337579,1745941841374,-561.54220509,0.00027397,2]
[359337580,1745941841384,-151.0,0.00027397,7]
[359337581,1745941841396,-151.0,0.00027397,7]
[359337582,1745941841407,-470.0,0.00027397,2]
[359337583,1745941841417,-470.0,0.00027397,2]
[359337584,1745941841426,-470.0,0.00027397,2]
[359337585,1745941841436,-470.0,0.00027397,2]
[359337586,1745941841446,-349.54451,0.00027397,7]
[359337587,1745941841456,-470.0,0.00027397,2]
[359337588,1745941841466,-349.54451,0.00027397,7]
[359337589,1745941841476,-470.0,0.00027397,2]
[359337590,1745941841485,-470.0,0.00027397,2]
[359337591,1745941841495,-470.0,0.00027397,2]
[359337592,1745941841504,-470.0,0.00027397,2]
[359337593,1745941841521,-470.0,0.00027397,2]
[359337594,1745941841531,-470.0,0.00027397,2]
[359337595,1745941841542,-151.0,0.00027397,7]
[359337596,1745941841556,-470.0,0.00027397,2]
[359337597,1745941841565,-151.0,0.00027397,7]
[359337598,1745941841575,-151.0,0.00027397,7]
[359337599,1745941841584,-154.241894,0.00027397,7]
[359337600,1745941841594,-151.0,0.00027397,7]
[359337601,1745941841603,-151.0,0.00027397,7]
[359337602,1745941841613,-601.86,0.00027397,2]
[359337603,1745941841623,-1000.0,0.00027397,2]
[359337604,1745941841633,-500.78381634,0.00027397,2]
[359337605,1745941841643,-514.38553646,0.00027397,2]
[359337606,1745941841652,-511.55278167,0.00027397,2]
[359337607,1745941841662,-509.27347118,0.00027397,2]
[359337608,1745941841672,-552.93,0.00027397,2]
[359337609,1745941841681,-470.0,0.00027397,2]
[359337610,1745941841691,-514.41494698,0.00027397,2]
[359337611,1745941841701,-547.18,0.00027397,2]
[359337612,1745941841711,-470.0,0.00027397,2]
[359337613,1745941841720,-470.0,0.00027397,2]
[359337614,1745941841729,-501.66433205,0.00027397,2]
[359337615,1745941841738,-470.0,0.00027397,2]
[359337616,1745941841748,-470.0,0.00027397,2]
[359337617,1745941841756,-520.86120378,0.00027397,2]